[Event "Titled Tuesday Blitz March 28 Early 2023"]
[White "Zeynalli, Rashad"]
[Black "Gutkin, Ilya"]
[WhiteFideId "13403320"]
[BlackFideId "16203470"]
[WhiteElo "2125"]
[BlackElo "2265"]
[Result "0-1"]
[Round "07"]
[TimeControl "180+2"]
[Date "2023.03.28"]
[WhiteClock "0:01:49"]
[BlackClock "0:00:52"]

1. d4 {[%clk 0:03:00]}  e6 {[%clk 0:03:00]} 2. Bf4 {[%clk 0:03:00]}  c5 {[%clk 0:02:59]} 3. e3 {[%clk 0:03:00]}  Nf6 {[%clk 0:02:59]} 4. c3 {[%clk 0:03:00]}  d5 {[%clk 0:02:57]} 5. Nd2 {[%clk 0:03:00]}  Bd6 {[%clk 0:02:58]} 6. Bg3 {[%clk 0:03:00]}  Nc6 {[%clk 0:02:58]} 7. Ngf3 {[%clk 0:03:01]}  Qe7 {[%clk 0:02:58]} 8. Ne5 {[%clk 0:03:00]}  Nd7 {[%clk 0:02:56]} 9. Ndf3 {[%clk 0:02:58]}  Ndxe5 {[%clk 0:02:51]} 10. dxe5 {[%clk 0:02:57]}  Bc7 {[%clk 0:02:50]} 11. Bd3 {[%clk 0:02:56]}  Bd7 {[%clk 0:02:48]} 12. h4 {[%clk 0:02:55]}  O-O-O {[%clk 0:02:47]} 13. h5 {[%clk 0:02:50]}  f6 {[%clk 0:02:44]} 14. exf6 {[%clk 0:02:49]}  gxf6 {[%clk 0:02:45]} 15. Bxc7 {[%clk 0:02:49]}  Kxc7 {[%clk 0:02:45]} 16. e4 {[%clk 0:02:47]}  d4 {[%clk 0:02:18]} 17. cxd4 {[%clk 0:02:47]}  cxd4 {[%clk 0:02:18]} 18. Rc1 {[%clk 0:02:45]}  e5 {[%clk 0:02:15]} 19. Qa4 {[%clk 0:02:41]}  Kb8 {[%clk 0:02:15]} 20. O-O {[%clk 0:02:40]}  Rhg8 {[%clk 0:02:02]} 21. Rfd1 {[%clk 0:02:36]}  Nb4 {[%clk 0:01:43]} 22. Qa3 {[%clk 0:02:32]}  Bg4 {[%clk 0:01:38]} 23. Bf1 {[%clk 0:02:28]}  d3 {[%clk 0:01:14]} 24. Nh4 {[%clk 0:02:04]}  Bxd1 {[%clk 0:01:13]} 25. Rxd1 {[%clk 0:02:05]}  d2 {[%clk 0:01:08]} 26. Qc3 {[%clk 0:01:56]}  Nc6 {[%clk 0:00:57]} 27. Rxd2 {[%clk 0:01:54]}  Rxd2 {[%clk 0:00:57]} 28. Qxd2 {[%clk 0:01:55]}  Nd4 {[%clk 0:00:57]} 29. Nf5 {[%clk 0:01:50]}  Nf3+ {[%clk 0:00:52]} 30. Kh1 {[%clk 0:01:49]}  Nxd2 {[%clk 0:00:52]} 31. Nxe7 {[%clk 0:01:49]}  Re8 {[%clk 0:00:52]} 0-1


[Site "https://www.chess.com"]

[Event "Titled Tuesday Blitz March 28 Early 2023"]
[White "Mrudul Dehankar"]
[Black "Yelisieiev, Yevhenii"]
[WhiteFideId "25096990"]
[BlackFideId "14139642"]
[WhiteElo "2139"]
[BlackElo "2447"]
[Result "1-0"]
[Round "07"]
[TimeControl "180+2"]
[Date "2023.03.28"]
[WhiteClock "0:00:11"]
[BlackClock "0:00:12"]

1. e4 {[%clk 0:03:00]}  d6 {[%clk 0:03:00]} 2. d4 {[%clk 0:02:58]}  Nf6 {[%clk 0:03:01]} 3. Nc3 {[%clk 0:02:57]}  e5 {[%clk 0:03:02]} 4. dxe5 {[%clk 0:02:53]}  dxe5 {[%clk 0:03:03]} 5. Qxd8+ {[%clk 0:02:54]}  Kxd8 {[%clk 0:03:04]} 6. Bg5 {[%clk 0:02:46]}  c6 {[%clk 0:03:04]} 7. O-O-O+ {[%clk 0:02:44]}  Nd7 {[%clk 0:03:02]} 8. Bc4 {[%clk 0:02:43]}  Ke8 {[%clk 0:02:52]} 9. Nf3 {[%clk 0:02:41]}  b5 {[%clk 0:02:50]} 10. Bb3 {[%clk 0:02:38]}  a5 {[%clk 0:02:48]} 11. a4 {[%clk 0:02:01]}  b4 {[%clk 0:02:47]} 12. Nb1 {[%clk 0:01:41]}  Nxe4 {[%clk 0:02:42]} 13. Rhe1 {[%clk 0:01:35]}  f5 {[%clk 0:02:14]} 14. Nbd2 {[%clk 0:00:56]}  Nxd2 {[%clk 0:01:36]} 15. Rxd2 {[%clk 0:00:45]}  e4 {[%clk 0:01:30]} 16. Ne5 {[%clk 0:00:32]}  Be7 {[%clk 0:01:06]} 17. Bxe7 {[%clk 0:00:25]}  Kxe7 {[%clk 0:01:06]} 18. Nxc6+ {[%clk 0:00:25]}  Kf6 {[%clk 0:01:05]} 19. Rd6+ {[%clk 0:00:24]}  Kg5 {[%clk 0:01:04]} 20. f3 {[%clk 0:00:17]}  Nc5 {[%clk 0:00:39]} 21. Bd5 {[%clk 0:00:14]}  Bb7 {[%clk 0:00:31]} 22. fxe4 {[%clk 0:00:13]}  Rhe8 {[%clk 0:00:19]} 23. e5 {[%clk 0:00:11]}  Rac8 {[%clk 0:00:18]} 24. e6 {[%clk 0:00:11]}  Ne4 {[%clk 0:00:15]} 25. Bxe4 {[%clk 0:00:11]}  fxe4 {[%clk 0:00:15]} 26. Nxa5 {[%clk 0:00:11]}  Ba8 {[%clk 0:00:14]} 27. Nb3 {[%clk 0:00:11]}  Kf5 {[%clk 0:00:13]} 28. Nd4+ {[%clk 0:00:11]}  Kf6 {[%clk 0:00:13]} 29. Rd7 {[%clk 0:00:11]}  Rc4 {[%clk 0:00:12]} 30. Rf1+ {[%clk 0:00:11]}  Ke5 {[%clk 0:00:12]} 31. Rf5# {[%clk 0:00:11]} 1-0


[Site "https://www.chess.com"]

[Event "Titled Tuesday Blitz March 28 Early 2023"]
[White "Fajdetic, Hrvoje"]
[Black "Ljukin, Sergei"]
[WhiteFideId "14501945"]
[BlackFideId "14102200"]
[WhiteElo "2185"]
[BlackElo "2312"]
[Result "0-1"]
[Round "07"]
[TimeControl "180+2"]
[Date "2023.03.28"]
[WhiteClock "0:00:01"]
[BlackClock "0:00:02"]

1. f4 {[%clk 0:02:58]}  d5 {[%clk 0:02:49]} 2. Nf3 {[%clk 0:02:58]}  Nf6 {[%clk 0:02:49]} 3. e3 {[%clk 0:02:58]}  Bf5 {[%clk 0:02:48]} 4. b3 {[%clk 0:02:56]}  c5 {[%clk 0:02:44]} 5. Bb2 {[%clk 0:02:56]}  Nc6 {[%clk 0:02:44]} 6. Be2 {[%clk 0:02:56]}  e6 {[%clk 0:02:43]} 7. O-O {[%clk 0:02:56]}  Be7 {[%clk 0:02:36]} 8. d3 {[%clk 0:02:55]}  O-O {[%clk 0:02:31]} 9. Qe1 {[%clk 0:02:55]}  Ng4 {[%clk 0:02:22]} 10. Bd1 {[%clk 0:02:54]}  Bf6 {[%clk 0:02:17]} 11. d4 {[%clk 0:02:42]}  cxd4 {[%clk 0:02:08]} 12. exd4 {[%clk 0:02:43]}  Qb6 {[%clk 0:02:00]} 13. c3 {[%clk 0:02:36]}  Be7 {[%clk 0:01:49]} 14. Ne5 {[%clk 0:02:26]}  Ngxe5 {[%clk 0:01:30]} 15. fxe5 {[%clk 0:02:24]}  f6 {[%clk 0:01:30]} 16. exf6 {[%clk 0:02:22]}  Bxf6 {[%clk 0:01:30]} 17. Kh1 {[%clk 0:02:20]}  Rae8 {[%clk 0:01:27]} 18. Bf3 {[%clk 0:02:18]}  Bd3 {[%clk 0:01:15]} 19. Be2 {[%clk 0:02:04]}  Bxe2 {[%clk 0:01:04]} 20. Qxe2 {[%clk 0:02:05]}  e5 {[%clk 0:01:04]} 21. dxe5 {[%clk 0:01:57]}  Rxe5 {[%clk 0:01:03]} 22. Qd3 {[%clk 0:01:50]}  Re3 {[%clk 0:00:47]} 23. Qxd5+ {[%clk 0:01:44]}  Kh8 {[%clk 0:00:47]} 24. Na3 {[%clk 0:01:30]}  Rd8 {[%clk 0:00:17]} 25. Qh5 {[%clk 0:01:21]}  Ne5 {[%clk 0:00:15]} 26. Rad1 {[%clk 0:00:39]}  h6 {[%clk 0:00:14]} 27. Bc1 {[%clk 0:00:09]}  Rxd1 {[%clk 0:00:07]} 28. Rxd1 {[%clk 0:00:09]}  Nd3 {[%clk 0:00:05]} 29. Bxe3 {[%clk 0:00:08]}  Qxe3 {[%clk 0:00:05]} 30. h3 {[%clk 0:00:02]}  Nf2+ {[%clk 0:00:05]} 31. Kh2 {[%clk 0:00:03]}  Nxd1 {[%clk 0:00:06]} 32. Qxd1 {[%clk 0:00:02]}  Be5+ {[%clk 0:00:06]} 33. Kh1 {[%clk 0:00:02]}  Qg3 {[%clk 0:00:05]} 34. Qg1 {[%clk 0:00:03]}  Bxc3 {[%clk 0:00:04]} 35. Nc4 {[%clk 0:00:04]}  b5 {[%clk 0:00:04]} 36. a4 {[%clk 0:00:04]}  bxc4 {[%clk 0:00:04]} 37. bxc4 {[%clk 0:00:04]}  Be5 {[%clk 0:00:04]} 38. c5 {[%clk 0:00:02]}  Bc7 {[%clk 0:00:04]} 39. c6 {[%clk 0:00:03]}  Kh7 {[%clk 0:00:04]} 40. a5 {[%clk 0:00:03]}  a6 {[%clk 0:00:03]} 41. Qb1+ {[%clk 0:00:03]}  Kh8 {[%clk 0:00:02]} 42. Qg1 {[%clk 0:00:03]}  Bxa5 {[%clk 0:00:02]} 43. Qa7 {[%clk 0:00:01]}  Bc7 {[%clk 0:00:03]} 44. Kg1 {[%clk 0:00:01]}  Qf4 {[%clk 0:00:02]} 0-1


[Site "https://www.chess.com"]

[Event "Titled Tuesday Blitz March 28 Early 2023"]
[White "Torres Dominguez, David"]
[Black "Harriott, Tyrell"]
[WhiteFideId "2220857"]
[BlackFideId "2086484"]
[WhiteElo "1999"]
[BlackElo "2107"]
[Result "1/2-1/2"]
[Round "07"]
[TimeControl "180+2"]
[Date "2023.03.28"]
[WhiteClock "0:00:11"]
[BlackClock "0:00:42"]

1. e4 {[%clk 0:02:55]}  e6 {[%clk 0:02:58]} 2. d4 {[%clk 0:02:55]}  b6 {[%clk 0:02:58]} 3. Bd3 {[%clk 0:02:54]}  Bb7 {[%clk 0:02:59]} 4. Qe2 {[%clk 0:02:54]}  d5 {[%clk 0:02:41]} 5. e5 {[%clk 0:02:53]}  c5 {[%clk 0:02:38]} 6. c3 {[%clk 0:02:51]}  Ne7 {[%clk 0:02:36]} 7. Nf3 {[%clk 0:02:46]}  Nec6 {[%clk 0:02:35]} 8. a3 {[%clk 0:02:43]}  c4 {[%clk 0:02:33]} 9. Bc2 {[%clk 0:02:30]}  Be7 {[%clk 0:02:33]} 10. O-O {[%clk 0:02:28]}  O-O {[%clk 0:02:32]} 11. Nbd2 {[%clk 0:02:20]}  Nd7 {[%clk 0:02:30]} 12. Re1 {[%clk 0:02:16]}  Re8 {[%clk 0:02:30]} 13. Nf1 {[%clk 0:02:14]}  Nf8 {[%clk 0:02:29]} 14. Ng3 {[%clk 0:02:09]}  b5 {[%clk 0:02:29]} 15. Nh5 {[%clk 0:02:02]}  Ng6 {[%clk 0:02:25]} 16. g3 {[%clk 0:01:56]}  a5 {[%clk 0:02:24]} 17. h4 {[%clk 0:01:54]}  Kh8 {[%clk 0:02:17]} 18. Bh6 {[%clk 0:01:37]}  gxh6 {[%clk 0:02:12]} 19. Qd2 {[%clk 0:01:30]}  Bf8 {[%clk 0:02:07]} 20. Nh2 {[%clk 0:01:26]}  Bg7 {[%clk 0:02:04]} 21. Nxg7 {[%clk 0:01:18]}  Kxg7 {[%clk 0:02:03]} 22. Ng4 {[%clk 0:01:18]}  Rg8 {[%clk 0:01:44]} 23. Qxh6+ {[%clk 0:01:16]}  Kh8 {[%clk 0:01:44]} 24. Nf6 {[%clk 0:01:08]}  Rg7 {[%clk 0:01:43]} 25. h5 {[%clk 0:01:05]}  Nf8 {[%clk 0:01:36]} 26. Kg2 {[%clk 0:01:03]}  Nb8 {[%clk 0:01:33]} 27. Qf4 {[%clk 0:00:58]}  Nbd7 {[%clk 0:01:31]} 28. h6 {[%clk 0:00:48]}  Rg6 {[%clk 0:01:30]} 29. Nxd7 {[%clk 0:00:45]}  Nxd7 {[%clk 0:01:29]} 30. Bxg6 {[%clk 0:00:40]}  fxg6 {[%clk 0:01:27]} 31. Qf7 {[%clk 0:00:36]}  Qf8 {[%clk 0:01:14]} 32. Qxd7 {[%clk 0:00:36]}  Bc8 {[%clk 0:01:11]} 33. Qc7 {[%clk 0:00:35]}  Rb8 {[%clk 0:01:08]} 34. Re3 {[%clk 0:00:34]}  Rb7 {[%clk 0:01:08]} 35. Qc6 {[%clk 0:00:32]}  Rf7 {[%clk 0:01:06]} 36. Rf1 {[%clk 0:00:24]}  Bd7 {[%clk 0:01:05]} 37. Qb6 {[%clk 0:00:21]}  a4 {[%clk 0:01:04]} 38. Qc5 {[%clk 0:00:16]}  Qxh6 {[%clk 0:01:00]} 39. Rh1 {[%clk 0:00:13]}  Qg5 {[%clk 0:00:55]} 40. Rf3 {[%clk 0:00:11]}  Rxf3 {[%clk 0:00:50]} 41. Kxf3 {[%clk 0:00:11]}  Qf5+ {[%clk 0:00:50]} 42. Kg2 {[%clk 0:00:11]}  Qe4+ {[%clk 0:00:50]} 43. Kh2 {[%clk 0:00:11]}  Kg7 {[%clk 0:00:48]} 44. Qe7+ {[%clk 0:00:10]}  Kg8 {[%clk 0:00:46]} 45. Kg1 {[%clk 0:00:10]}  Qe1+ {[%clk 0:00:42]} 46. Kg2 {[%clk 0:00:10]}  Qe4+ {[%clk 0:00:42]} 47. Kg1 {[%clk 0:00:10]}  Qe1+ {[%clk 0:00:42]} 48. Kg2 {[%clk 0:00:10]}  Qe4+ {[%clk 0:00:42]} 49. Kg1 {[%clk 0:00:11]} 1/2-1/2


[Site "https://www.chess.com"]

[Event "Titled Tuesday Blitz March 28 Early 2023"]
[White "Bongo Akanga Ndjila, Barthelemy"]
[Black "Meunier-Pion, Jean"]
[WhiteFideId "10609431"]
[BlackFideId "20685327"]
[WhiteElo "1768"]
[BlackElo "2124"]
[Result "0-1"]
[Round "07"]
[TimeControl "180+2"]
[Date "2023.03.28"]
[WhiteClock "0:00:56"]
[BlackClock "0:00:03"]

1. d4 {[%clk 0:03:00]}  Nf6 {[%clk 0:02:58]} 2. c4 {[%clk 0:03:00]}  e6 {[%clk 0:02:59]} 3. Nf3 {[%clk 0:03:00]}  b6 {[%clk 0:02:59]} 4. Nc3 {[%clk 0:02:59]}  Bb4 {[%clk 0:02:57]} 5. Bd2 {[%clk 0:02:56]}  Bb7 {[%clk 0:02:55]} 6. a3 {[%clk 0:02:54]}  Bxc3 {[%clk 0:02:55]} 7. Bxc3 {[%clk 0:02:54]}  Ne4 {[%clk 0:02:54]} 8. Rc1 {[%clk 0:02:54]}  O-O {[%clk 0:02:53]} 9. g3 {[%clk 0:02:53]}  d6 {[%clk 0:02:50]} 10. Bg2 {[%clk 0:02:52]}  Nd7 {[%clk 0:02:50]} 11. O-O {[%clk 0:02:50]}  Qe7 {[%clk 0:02:49]} 12. Re1 {[%clk 0:02:49]}  f5 {[%clk 0:02:48]} 13. e3 {[%clk 0:02:48]}  g5 {[%clk 0:02:46]} 14. h3 {[%clk 0:02:45]}  g4 {[%clk 0:02:44]} 15. Nh4 {[%clk 0:02:42]}  Qg5 {[%clk 0:02:35]} 16. d5 {[%clk 0:02:38]}  e5 {[%clk 0:02:28]} 17. hxg4 {[%clk 0:02:34]}  Nxc3 {[%clk 0:02:16]} 18. Rxc3 {[%clk 0:02:33]}  fxg4 {[%clk 0:02:15]} 19. Be4 {[%clk 0:02:26]}  Rf6 {[%clk 0:02:06]} 20. b4 {[%clk 0:02:22]}  Raf8 {[%clk 0:02:05]} 21. Rc2 {[%clk 0:02:20]}  Bc8 {[%clk 0:02:00]} 22. Kg2 {[%clk 0:02:18]}  R8f7 {[%clk 0:01:48]} 23. Rh1 {[%clk 0:02:14]}  Nf8 {[%clk 0:01:30]} 24. Rh2 {[%clk 0:02:10]}  Bd7 {[%clk 0:01:18]} 25. Kg1 {[%clk 0:02:02]}  Ba4 {[%clk 0:01:17]} 26. Qd3 {[%clk 0:01:49]}  Bxc2 {[%clk 0:01:15]} 27. Qxc2 {[%clk 0:01:50]}  a5 {[%clk 0:01:05]} 28. c5 {[%clk 0:01:49]}  axb4 {[%clk 0:01:03]} 29. axb4 {[%clk 0:01:48]}  bxc5 {[%clk 0:01:03]} 30. bxc5 {[%clk 0:01:48]}  dxc5 {[%clk 0:00:40]} 31. Qxc5 {[%clk 0:01:47]}  Ra6 {[%clk 0:00:36]} 32. d6 {[%clk 0:01:29]}  cxd6 {[%clk 0:00:34]} 33. Qc8 {[%clk 0:01:28]}  Ra1+ {[%clk 0:00:34]} 34. Kg2 {[%clk 0:01:28]}  Rd1 {[%clk 0:00:17]} 35. Qc2 {[%clk 0:01:25]}  d5 {[%clk 0:00:10]} 36. Qxd1 {[%clk 0:01:22]}  dxe4 {[%clk 0:00:10]} 37. Qd5 {[%clk 0:01:22]}  Qf6 {[%clk 0:00:10]} 38. Kg1 {[%clk 0:01:19]}  Ng6 {[%clk 0:00:04]} 39. Nxg6 {[%clk 0:01:13]}  hxg6 {[%clk 0:00:04]} 40. Qxe4 {[%clk 0:01:12]}  Kg7 {[%clk 0:00:04]} 41. Qxg4 {[%clk 0:01:10]}  Qd6 {[%clk 0:00:04]} 42. Rh4 {[%clk 0:01:00]}  Qd2 {[%clk 0:00:03]} 43. Rh2 {[%clk 0:00:55]}  Qe1+ {[%clk 0:00:04]} 44. Kg2 {[%clk 0:00:55]}  Rxf2+ {[%clk 0:00:03]} 45. Kh3 {[%clk 0:00:56]}  Qf1+ {[%clk 0:00:03]} 46. Kh4 {[%clk 0:00:55]}  Rxh2+ {[%clk 0:00:04]} 47. Kg5 {[%clk 0:00:56]}  Qf6# {[%clk 0:00:03]} 0-1


[Site "https://www.chess.com"]

[Event "Titled Tuesday Blitz March 28 Early 2023"]
[White "Melikhov, Evgeny V."]
[Black "Kornyukov, Alexey"]
[WhiteFideId "4122046"]
[BlackFideId "4150457"]
[WhiteElo "2158"]
[BlackElo "2352"]
[Result "1-0"]
[Round "07"]
[TimeControl "180+2"]
[Date "2023.03.28"]
[WhiteClock "0:02:11"]
[BlackClock "0:01:30"]

1. d4 {[%clk 0:03:00]}  d5 {[%clk 0:02:59]} 2. c4 {[%clk 0:03:00]}  e6 {[%clk 0:02:58]} 3. Nc3 {[%clk 0:03:00]}  Be7 {[%clk 0:02:55]} 4. cxd5 {[%clk 0:02:59]}  exd5 {[%clk 0:02:54]} 5. Nf3 {[%clk 0:02:59]}  Nf6 {[%clk 0:02:53]} 6. Bg5 {[%clk 0:02:59]}  O-O {[%clk 0:02:44]} 7. e3 {[%clk 0:02:55]}  Ne4 {[%clk 0:02:40]} 8. Bxe7 {[%clk 0:02:50]}  Qxe7 {[%clk 0:02:39]} 9. Nxd5 {[%clk 0:02:44]}  Qd6 {[%clk 0:02:36]} 10. Nc3 {[%clk 0:02:42]}  Nxc3 {[%clk 0:02:33]} 11. bxc3 {[%clk 0:02:42]}  c5 {[%clk 0:02:21]} 12. Be2 {[%clk 0:02:41]}  Nc6 {[%clk 0:02:11]} 13. O-O {[%clk 0:02:41]}  Rd8 {[%clk 0:01:58]} 14. Qb3 {[%clk 0:02:25]}  Be6 {[%clk 0:01:47]} 15. Qxb7 {[%clk 0:02:19]}  Rdb8 {[%clk 0:01:32]} 16. Qa6 {[%clk 0:02:17]}  Rb6 {[%clk 0:01:30]} 17. Qa3 {[%clk 0:02:11]} 1-0


[Site "https://www.chess.com"]

[Event "Titled Tuesday Blitz March 28 Early 2023"]
[White "Winkels, Marcel"]
[Black "Kozelov, Roman"]
[WhiteFideId "1003887"]
[BlackFideId "14133377"]
[WhiteElo "1900"]
[BlackElo "2149"]
[Result "1-0"]
[Round "07"]
[TimeControl "180+2"]
[Date "2023.03.28"]
[WhiteClock "0:00:22"]
[BlackClock "0:00:23"]

1. d4 {[%clk 0:02:38]}  d5 {[%clk 0:02:58]} 2. Bf4 {[%clk 0:02:35]}  Nf6 {[%clk 0:02:53]} 3. e3 {[%clk 0:02:35]}  e6 {[%clk 0:02:53]} 4. Nf3 {[%clk 0:02:34]}  Bd6 {[%clk 0:02:53]} 5. Bg3 {[%clk 0:02:31]}  O-O {[%clk 0:02:53]} 6. c3 {[%clk 0:02:31]}  c5 {[%clk 0:02:52]} 7. Nbd2 {[%clk 0:02:29]}  Nc6 {[%clk 0:02:51]} 8. Bd3 {[%clk 0:02:29]}  c4 {[%clk 0:02:50]} 9. Bc2 {[%clk 0:02:28]}  b5 {[%clk 0:02:51]} 10. O-O {[%clk 0:02:25]}  b4 {[%clk 0:02:49]} 11. e4 {[%clk 0:02:18]}  dxe4 {[%clk 0:02:48]} 12. Nxe4 {[%clk 0:02:17]}  Nxe4 {[%clk 0:02:48]} 13. Bxe4 {[%clk 0:02:16]}  Bb7 {[%clk 0:02:47]} 14. Qc2 {[%clk 0:02:07]}  h6 {[%clk 0:02:46]} 15. Rad1 {[%clk 0:02:00]}  Bxg3 {[%clk 0:02:41]} 16. hxg3 {[%clk 0:01:57]}  Rb8 {[%clk 0:02:26]} 17. Bxc6 {[%clk 0:01:44]}  Bxc6 {[%clk 0:02:25]} 18. Ne5 {[%clk 0:01:45]}  Bd5 {[%clk 0:02:22]} 19. cxb4 {[%clk 0:01:43]}  Rxb4 {[%clk 0:02:21]} 20. a3 {[%clk 0:01:37]}  Rb7 {[%clk 0:02:04]} 21. Nxc4 {[%clk 0:01:36]}  Qb8 {[%clk 0:01:42]} 22. Ne3 {[%clk 0:01:23]}  Rxb2 {[%clk 0:01:41]} 23. Qc5 {[%clk 0:01:24]}  Be4 {[%clk 0:01:35]} 24. d5 {[%clk 0:01:23]}  exd5 {[%clk 0:01:26]} 25. Nxd5 {[%clk 0:01:22]}  Qxg3 {[%clk 0:01:05]} 26. Ne3 {[%clk 0:00:44]}  Qg6 {[%clk 0:00:57]} 27. Rd4 {[%clk 0:00:39]}  Ba8 {[%clk 0:00:44]} 28. Qe5 {[%clk 0:00:31]}  h5 {[%clk 0:00:31]} 29. Rd6 {[%clk 0:00:29]}  f6 {[%clk 0:00:23]} 30. Qxb2 {[%clk 0:00:22]} 1-0


[Site "https://www.chess.com"]

[Event "Titled Tuesday Blitz March 28 Early 2023"]
[White "Vedder, Richard"]
[Black "Acikel, Mert"]
[WhiteFideId "1004166"]
[BlackFideId "12956465"]
[WhiteElo "2168"]
[BlackElo "2097"]
[Result "1-0"]
[Round "07"]
[TimeControl "180+2"]
[Date "2023.03.28"]
[WhiteClock "0:01:48"]
[BlackClock "0:00:20"]

1. d4 {[%clk 0:03:00]}  d5 {[%clk 0:01:31]} 2. c4 {[%clk 0:02:58]}  e6 {[%clk 0:01:32]} 3. Nc3 {[%clk 0:02:58]}  Nf6 {[%clk 0:01:32]} 4. cxd5 {[%clk 0:02:57]}  exd5 {[%clk 0:01:33]} 5. Bg5 {[%clk 0:02:57]}  c6 {[%clk 0:01:33]} 6. e3 {[%clk 0:02:57]}  h6 {[%clk 0:01:34]} 7. Bh4 {[%clk 0:02:56]}  Be7 {[%clk 0:01:34]} 8. Bd3 {[%clk 0:02:56]}  O-O {[%clk 0:01:35]} 9. Qc2 {[%clk 0:02:55]}  Re8 {[%clk 0:01:35]} 10. Nge2 {[%clk 0:02:54]}  a5 {[%clk 0:01:35]} 11. O-O {[%clk 0:02:53]}  Na6 {[%clk 0:01:35]} 12. a3 {[%clk 0:02:52]}  Nc7 {[%clk 0:01:36]} 13. Rae1 {[%clk 0:02:50]}  Bd7 {[%clk 0:01:22]} 14. f3 {[%clk 0:02:49]}  Ne6 {[%clk 0:01:10]} 15. Bf2 {[%clk 0:02:47]}  b5 {[%clk 0:01:02]} 16. e4 {[%clk 0:02:44]}  b4 {[%clk 0:01:02]} 17. axb4 {[%clk 0:02:44]}  axb4 {[%clk 0:01:02]} 18. Nd1 {[%clk 0:02:39]}  dxe4 {[%clk 0:00:54]} 19. fxe4 {[%clk 0:02:40]}  Ng4 {[%clk 0:00:55]} 20. Bg3 {[%clk 0:02:33]}  Bh4 {[%clk 0:00:39]} 21. Qd2 {[%clk 0:02:15]}  Bxg3 {[%clk 0:00:35]} 22. hxg3 {[%clk 0:02:12]}  Ng5 {[%clk 0:00:25]} 23. Qf4 {[%clk 0:01:57]}  Be6 {[%clk 0:00:20]} 24. Ne3 {[%clk 0:01:49]}  Qxd4 {[%clk 0:00:20]} 25. Nxd4 {[%clk 0:01:48]} 1-0


[Site "https://www.chess.com"]

[Event "Titled Tuesday Blitz March 28 Early 2023"]
[White "Topalov, Aleksandar"]
[Black "Sanchez, German"]
[WhiteFideId "925659"]
[BlackFideId "4403959"]
[WhiteElo "2151"]
[BlackElo "1816"]
[Result "1-0"]
[Round "07"]
[TimeControl "180+2"]
[Date "2023.03.28"]
[WhiteClock "0:00:50"]
[BlackClock "0:00:02"]

1. b3 {[%clk 0:02:48]}  Nf6 {[%clk 0:02:43]} 2. Bb2 {[%clk 0:02:49]}  d6 {[%clk 0:02:40]} 3. Bxf6 {[%clk 0:02:48]}  gxf6 {[%clk 0:02:39]} 4. c4 {[%clk 0:02:48]}  Bg7 {[%clk 0:02:39]} 5. Nc3 {[%clk 0:02:48]}  f5 {[%clk 0:02:38]} 6. e3 {[%clk 0:02:48]}  c5 {[%clk 0:02:37]} 7. Nge2 {[%clk 0:02:48]}  Nc6 {[%clk 0:02:37]} 8. g3 {[%clk 0:02:48]}  h5 {[%clk 0:02:36]} 9. h4 {[%clk 0:02:47]}  e5 {[%clk 0:02:33]} 10. Bg2 {[%clk 0:02:44]}  Be6 {[%clk 0:02:30]} 11. d3 {[%clk 0:02:43]}  Qe7 {[%clk 0:02:13]} 12. Nd5 {[%clk 0:02:39]}  Bxd5 {[%clk 0:02:12]} 13. Bxd5 {[%clk 0:02:39]}  O-O-O {[%clk 0:02:10]} 14. e4 {[%clk 0:02:21]}  fxe4 {[%clk 0:02:07]} 15. Bxe4 {[%clk 0:02:14]}  Nd4 {[%clk 0:02:05]} 16. Nxd4 {[%clk 0:02:10]}  cxd4 {[%clk 0:02:06]} 17. Qf3 {[%clk 0:02:00]}  Kb8 {[%clk 0:01:56]} 18. O-O {[%clk 0:01:52]}  Rdf8 {[%clk 0:01:55]} 19. Bf5 {[%clk 0:01:51]}  Bh6 {[%clk 0:01:52]} 20. b4 {[%clk 0:01:50]}  Rfg8 {[%clk 0:01:47]} 21. Kh2 {[%clk 0:01:42]}  Bf4 {[%clk 0:01:46]} 22. gxf4 {[%clk 0:01:34]}  Qxh4+ {[%clk 0:01:42]} 23. Bh3 {[%clk 0:01:34]}  Rg4 {[%clk 0:01:25]} 24. Rg1 {[%clk 0:01:30]}  Rhg8 {[%clk 0:01:17]} 25. fxe5 {[%clk 0:01:24]}  dxe5 {[%clk 0:01:06]} 26. Rg3 {[%clk 0:01:23]}  f5 {[%clk 0:01:00]} 27. Qxf5 {[%clk 0:01:07]}  R8g5 {[%clk 0:00:19]} 28. Qf8+ {[%clk 0:01:04]}  Kc7 {[%clk 0:00:20]} 29. Rag1 {[%clk 0:00:59]}  Rf4 {[%clk 0:00:15]} 30. Qe7+ {[%clk 0:00:55]}  Kc6 {[%clk 0:00:02]} 31. Qxg5 {[%clk 0:00:50]} 1-0


[Site "https://www.chess.com"]